[Event "*** Titled Tuesday Blitz"]
[Site "Chess.com"]
[Date "2020.05.12"]
[Round "7"]
[White "JoachimMouhamad"]
[Black "dianosky"]
[Result "0-1"]
[WhiteElo "2216"]
[BlackElo "2411"]
[TimeControl "180+1"]
[EndTime "11:16:54 PDT"]
[Termination "dianosky won on time"]

1. e4 {[%clk 0:03:00.9]} 1... d6 {[%clk 0:02:59.2]} 2. d4 {[%clk 0:03:00.4]}
2... Nf6 {[%clk 0:02:59.8]} 3. Nc3 {[%clk 0:02:59.9]} 3... g6 {[%clk 0:03:00.4]}
4. Be3 {[%clk 0:02:54.2]} 4... Bg7 {[%clk 0:03:00.1]} 5. f3 {[%clk 0:02:52.5]}
5... O-O {[%clk 0:02:59.5]} 6. Qd2 {[%clk 0:02:52.2]} 6... Re8 {[%clk
0:02:58.6]} 7. g4 {[%clk 0:02:48.8]} 7... a6 {[%clk 0:02:55.5]} 8. h4 {[%clk
0:02:47.8]} 8... h5 {[%clk 0:02:55.5]} 9. g5 {[%clk 0:02:42]} 9... Nfd7 {[%clk
0:02:54.5]} 10. f4 {[%clk 0:02:37.5]} 10... e6 {[%clk 0:02:51.4]} 11. Bd3 {[%clk
0:02:24]} 11... b5 {[%clk 0:02:50]} 12. O-O-O {[%clk 0:02:18.6]} 12... c5 {[%clk
0:02:42.5]} 13. Nf3 {[%clk 0:02:06.8]} 13... c4 {[%clk 0:02:31.7]} 14. Bf1
{[%clk 0:01:55]} 14... Bb7 {[%clk 0:02:21.5]} 15. a3 {[%clk 0:01:43.5]} 15...
Qa5 {[%clk 0:02:13.8]} 16. f5 {[%clk 0:00:58.5]} 16... exf5 {[%clk 0:02:09.5]}
17. exf5 {[%clk 0:00:38.3]} 17... Bxf3 {[%clk 0:02:08.1]} 18. Bg2 {[%clk
0:00:38.3]} 18... Rxe3 {[%clk 0:01:49.9]} 19. Qxe3 {[%clk 0:00:33.7]} 19... Bxg2
{[%clk 0:01:49.5]} 20. Qe8+ {[%clk 0:00:29.6]} 20... Nf8 {[%clk 0:01:43.5]} 21.
fxg6 {[%clk 0:00:27]} 21... fxg6 {[%clk 0:01:42.5]} 22. Ne4 {[%clk 0:00:20.3]}
22... Nd7 {[%clk 0:01:41.7]} 23. Qe7 {[%clk 0:00:18.4]} 23... Bxh1 {[%clk
0:01:30]} 24. Rxh1 {[%clk 0:00:17.6]} 24... Qd8 {[%clk 0:01:30.3]} 25. Qxd6
{[%clk 0:00:15.7]} 25... Nb6 {[%clk 0:01:27]} 26. Qf4 {[%clk 0:00:11.8]} 26...
Nd5 {[%clk 0:01:26.7]} 27. Qf3 {[%clk 0:00:11.2]} 27... Ra7 {[%clk 0:01:26.6]}
28. Rf1 {[%clk 0:00:10.6]} 28... Bxd4 {[%clk 0:01:15.3]} 29. Kb1 {[%clk
0:00:10.3]} 29... c3 {[%clk 0:01:12.5]} 30. Rd1 {[%clk 0:00:09.4]} 30... Ne6
{[%clk 0:01:12]} 31. Nf6+ {[%clk 0:00:07.9]} 31... Nxf6 {[%clk 0:01:08.7]} 32.
gxf6 {[%clk 0:00:08.7]} 32... Qxf6 {[%clk 0:01:07.3]} 33. Qe4 {[%clk 0:00:08.2]}
33... cxb2 {[%clk 0:01:07.1]} 34. Qd5 {[%clk 0:00:08.2]} 34... Rf7 {[%clk
0:01:04.2]} 35. a4 {[%clk 0:00:05.5]} 35... bxa4 {[%clk 0:01:04.2]} 36. Qa8+
{[%clk 0:00:05.1]} 36... Kg7 {[%clk 0:01:04.5]} 37. Qxa6 {[%clk 0:00:06]} 37...
Nc5 {[%clk 0:01:03.7]} 38. Qc4 {[%clk 0:00:05.5]} 38... Rd7 {[%clk 0:01:00.8]}
39. c3 {[%clk 0:00:03.5]} 39... Bxc3 {[%clk 0:00:58.5]} 40. Rf1 {[%clk
0:00:03.3]} 40... Qd4 {[%clk 0:00:51.1]} 41. Qb5 {[%clk 0:00:03.1]} 41... Qd3+
{[%clk 0:00:50.7]} 42. Qxd3 {[%clk 0:00:02.9]} 42... Nxd3 {[%clk 0:00:49.9]} 43.
Ka2 {[%clk 0:00:02.3]} 43... Nb4+ {[%clk 0:00:48.8]} 44. Kb1 {[%clk 0:00:02.4]}
44... a3 {[%clk 0:00:49.1]} 45. Rf7+ {[%clk 0:00:02.4]} 45... Kg8 {[%clk
0:00:39.9]} 46. Rf8+ {[%clk 0:00:02.2]} 46... Kh7 {[%clk 0:00:33.8]} 47. Rf7+
{[%clk 0:00:01.1]} 47... Bg7 {[%clk 0:00:33.9]} 0-1

[Event "*** Titled Tuesday Blitz"]
[Site "Chess.com"]
[Date "2020.05.12"]
[Round "7"]
[White "MariaFominykh"]
[Black "Kate1606"]
[Result "1-0"]
[WhiteElo "2334"]
[BlackElo "2074"]
[TimeControl "180+1"]
[EndTime "11:16:56 PDT"]
[Termination "MariaFominykh won on time"]

1. Nf3 {[%clk 0:03:00.9]} 1... c5 {[%clk 0:02:57.8]} 2. g3 {[%clk 0:03:01]} 2...
Nc6 {[%clk 0:02:56.3]} 3. Bg2 {[%clk 0:03:01.6]} 3... g6 {[%clk 0:02:56.3]} 4.
O-O {[%clk 0:03:02]} 4... Bg7 {[%clk 0:02:56.7]} 5. d3 {[%clk 0:03:01.4]} 5...
e5 {[%clk 0:02:56.4]} 6. e4 {[%clk 0:03:01.8]} 6... Nge7 {[%clk 0:02:56.2]} 7.
c3 {[%clk 0:03:01.9]} 7... d6 {[%clk 0:02:55.2]} 8. a3 {[%clk 0:03:00.8]} 8...
Be6 {[%clk 0:02:55]} 9. b4 {[%clk 0:03:00.4]} 9... O-O {[%clk 0:02:48.7]} 10.
Be3 {[%clk 0:02:58.9]} 10... b6 {[%clk 0:02:35.8]} 11. Ng5 {[%clk 0:02:49.8]}
11... Bd7 {[%clk 0:02:24.1]} 12. b5 {[%clk 0:02:33.6]} 12... Na5 {[%clk
0:02:16.5]} 13. c4 {[%clk 0:02:25.2]} 13... h6 {[%clk 0:02:11.8]} 14. Nf3 {[%clk
0:02:19]} 14... Rc8 {[%clk 0:02:11.1]} 15. Nc3 {[%clk 0:02:16.9]} 15... f5
{[%clk 0:02:04.5]} 16. exf5 {[%clk 0:01:46.9]} 16... gxf5 {[%clk 0:01:40.7]} 17.
Nh4 {[%clk 0:01:43.4]} 17... f4 {[%clk 0:01:26]} 18. Bd2 {[%clk 0:01:41.1]}
18... Rb8 {[%clk 0:00:45]} 19. Be4 {[%clk 0:01:29.5]} 19... Bh3 {[%clk
0:00:34.2]} 20. Re1 {[%clk 0:01:21]} 20... Qd7 {[%clk 0:00:21.8]} 21. Rb1 {[%clk
0:01:14.2]} 21... Bg4 {[%clk 0:00:19.1]} 22. f3 {[%clk 0:01:11.8]} 22... Bf5
{[%clk 0:00:15.4]} 23. g4 {[%clk 0:00:58.6]} 23... Bxe4 {[%clk 0:00:13.3]} 24.
Nxe4 {[%clk 0:00:57.5]} 24... Qe6 {[%clk 0:00:12.2]} 25. Qe2 {[%clk 0:00:52]}
25... Ng6 {[%clk 0:00:11.8]} 26. Nf5 {[%clk 0:00:50.4]} 26... Nb7 {[%clk
0:00:11.5]} 27. Qf2 {[%clk 0:00:46.7]} 27... Rbe8 {[%clk 0:00:10.2]} 28. h4
{[%clk 0:00:45.5]} 28... Ne7 {[%clk 0:00:08.3]} 29. Nxe7+ {[%clk 0:00:31]} 29...
Qxe7 {[%clk 0:00:06.9]} 30. Kf1 {[%clk 0:00:28.3]} 30... Qe6 {[%clk 0:00:05.8]}
31. Ke2 {[%clk 0:00:25.6]} 31... d5 {[%clk 0:00:04.9]} 32. cxd5 {[%clk
0:00:21.9]} 32... Qxd5 {[%clk 0:00:05.8]} 33. Rec1 {[%clk 0:00:21]} 33... Rd8
{[%clk 0:00:05.6]} 34. Rc3 {[%clk 0:00:20.9]} 34... Na5 {[%clk 0:00:05]} 35. Qf1
{[%clk 0:00:19.7]} 35... c4 {[%clk 0:00:05.2]} 36. Kf2 {[%clk 0:00:17.5]} 36...
cxd3 {[%clk 0:00:04.6]} 37. Rc7 {[%clk 0:00:15.6]} 37... Nb3 {[%clk 0:00:03.3]}
38. Bb4 {[%clk 0:00:14.1]} 38... Nc5 {[%clk 0:00:02.9]} 39. Qe1 {[%clk
0:00:10.2]} 39... Qd4+ {[%clk 0:00:02.3]} 40. Kg2 {[%clk 0:00:09.7]} 40... d2
{[%clk 0:00:02.1]} 41. Nxd2 {[%clk 0:00:08.8]} 1-0

[Event "*** Titled Tuesday Blitz"]
[Site "Chess.com"]
[Date "2020.05.12"]
[Round "7"]
[White "davigator"]
[Black "SCIM"]
[Result "0-1"]
[WhiteElo "2369"]
[BlackElo "2543"]
[TimeControl "180+1"]
[EndTime "11:16:57 PDT"]
[Termination "SCIM won by resignation"]

1. e4 {[%clk 0:03:00.9]} 1... c5 {[%clk 0:02:56.9]} 2. Nf3 {[%clk 0:02:59.4]}
2... e6 {[%clk 0:02:57.4]} 3. d4 {[%clk 0:02:59.4]} 3... cxd4 {[%clk 0:02:58.3]}
4. Nxd4 {[%clk 0:02:59.7]} 4... Nc6 {[%clk 0:02:59]} 5. Nc3 {[%clk 0:02:59.1]}
5... Qc7 {[%clk 0:02:59.2]} 6. Be3 {[%clk 0:02:59]} 6... a6 {[%clk 0:02:59.4]}
7. a3 {[%clk 0:02:59.1]} 7... Nf6 {[%clk 0:02:58.4]} 8. f4 {[%clk 0:02:59.2]}
8... d6 {[%clk 0:02:51.4]} 9. Be2 {[%clk 0:02:57.8]} 9... Be7 {[%clk 0:02:47.1]}
10. O-O {[%clk 0:02:57.7]} 10... Bd7 {[%clk 0:02:43.5]} 11. Kh1 {[%clk
0:02:55.3]} 11... Nxd4 {[%clk 0:02:39.4]} 12. Qxd4 {[%clk 0:02:54.5]} 12... Bc6
{[%clk 0:02:25.4]} 13. e5 {[%clk 0:02:40.9]} 13... Nd7 {[%clk 0:02:19.5]} 14.
exd6 {[%clk 0:02:38.7]} 14... Bxd6 {[%clk 0:02:18.3]} 15. Qxg7 {[%clk
0:02:37.5]} 15... O-O-O {[%clk 0:02:18.6]} 16. Qxf7 {[%clk 0:02:37]} 16... Rdf8
{[%clk 0:02:06.6]} 17. Qh5 {[%clk 0:02:36.2]} 17... Nf6 {[%clk 0:02:03.4]} 18.
Qh3 {[%clk 0:02:33.6]} 18... h5 {[%clk 0:01:53.3]} 19. Qxe6+ {[%clk 0:02:18.8]}
19... Kb8 {[%clk 0:01:52.4]} 20. Qb3 {[%clk 0:02:17.6]} 20... Ng4 {[%clk
0:01:22.6]} 21. Bg1 {[%clk 0:02:00.2]} 21... Bxf4 {[%clk 0:01:11.2]} 22. Rxf4
{[%clk 0:01:49]} 22... Qxf4 {[%clk 0:00:58.6]} 23. Nd5 {[%clk 0:01:46.2]} 23...
Qe4 {[%clk 0:00:45.1]} 24. Bf3 {[%clk 0:01:46.2]} 24... Rxf3 {[%clk 0:00:43.5]}
25. Qxf3 {[%clk 0:01:41.6]} 25... Qxf3 {[%clk 0:00:41.5]} 26. gxf3 {[%clk
0:01:40.8]} 26... Bxd5 {[%clk 0:00:41.6]} 27. Kg2 {[%clk 0:01:40.8]} 27... Rf8
{[%clk 0:00:35.6]} 28. Rf1 {[%clk 0:01:39.3]} 28... Ne5 {[%clk 0:00:35.3]} 29.
Kg3 {[%clk 0:01:38.1]} 29... Nxf3 {[%clk 0:00:32.8]} 30. Bc5 {[%clk 0:01:36.1]}
30... Rg8+ {[%clk 0:00:30.8]} 31. Kf4 {[%clk 0:01:34.2]} 31... b5 {[%clk
0:00:27.7]} 32. h3 {[%clk 0:01:31.4]} 32... Kb7 {[%clk 0:00:24.4]} 33. Rd1
{[%clk 0:01:26.3]} 33... Kc6 {[%clk 0:00:23.2]} 34. Bf2 {[%clk 0:01:22.1]} 34...
Rf8+ {[%clk 0:00:22.8]} 35. Ke3 {[%clk 0:01:22.3]} 35... Re8+ {[%clk 0:00:22.8]}
36. Kd3 {[%clk 0:01:11.3]} 36... Ne5+ {[%clk 0:00:22.6]} 37. Kd4 {[%clk
0:01:09.3]} 37... Nf3+ {[%clk 0:00:20.5]} 38. Kd3 {[%clk 0:01:08.8]} 38... Rd8
{[%clk 0:00:19.1]} 39. Kc3 {[%clk 0:01:07.5]} 39... Rf8 {[%clk 0:00:17.7]} 40.
Be3 {[%clk 0:01:06.6]} 40... Ne5 {[%clk 0:00:17.2]} 41. Kd4 {[%clk 0:01:04.8]}
41... Nc4 {[%clk 0:00:16.8]} 42. Bc1 {[%clk 0:01:03.8]} 42... Re8 {[%clk
0:00:15.6]} 43. b3 {[%clk 0:01:02.3]} 43... Re4+ {[%clk 0:00:15.2]} 44. Kd3
{[%clk 0:01:02.6]} 44... Ne5+ {[%clk 0:00:15]} 45. Kc3 {[%clk 0:01:03.1]} 45...
Rh4 {[%clk 0:00:13.7]} 46. Re1 {[%clk 0:01:01.4]} 46... Rxh3+ {[%clk 0:00:13.4]}
47. Kb2 {[%clk 0:01:02]} 47... Nf3 {[%clk 0:00:10.7]} 48. Re8 {[%clk 0:01:01]}
48... Rh2 {[%clk 0:00:10.7]} 49. Rc8+ {[%clk 0:00:59.7]} 49... Kd7 {[%clk
0:00:10.2]} 50. Rh8 {[%clk 0:00:57.7]} 50... h4 {[%clk 0:00:09.3]} 51. Bf4
{[%clk 0:00:57]} 51... Rg2 {[%clk 0:00:09.1]} 52. Rh7+ {[%clk 0:00:55.9]} 52...
Ke6 {[%clk 0:00:09.6]} 53. Rh6+ {[%clk 0:00:56]} 53... Kf5 {[%clk 0:00:09.8]}
54. Bc1 {[%clk 0:00:54.9]} 54... Be4 {[%clk 0:00:10.1]} 55. Rxa6 {[%clk
0:00:54.2]} 55... Rxc2+ {[%clk 0:00:09.7]} 56. Ka1 {[%clk 0:00:54.4]} 56...
Rxc1+ {[%clk 0:00:09.9]} 57. Kb2 {[%clk 0:00:54.9]} 57... Rc2+ {[%clk
0:00:10.8]} 58. Ka1 {[%clk 0:00:54.5]} 58... Nd4 {[%clk 0:00:11]} 59. Rb6 {[%clk
0:00:49.4]} 59... Rc1+ {[%clk 0:00:10.8]} 60. Kb2 {[%clk 0:00:49.1]} 60... Rc2+
{[%clk 0:00:11.7]} 61. Ka1 {[%clk 0:00:49.4]} 61... Nxb3+ {[%clk 0:00:11.9]} 62.
Kb1 {[%clk 0:00:49.7]} 62... Rc6+ {[%clk 0:00:11.9]} 63. Kb2 {[%clk 0:00:50.4]}
63... Rxb6 {[%clk 0:00:12.8]} 64. Kxb3 {[%clk 0:00:51]} 64... Rg6 {[%clk
0:00:13.1]} 0-1

[Event "*** Titled Tuesday Blitz"]
[Site "Chess.com"]
[Date "2020.05.12"]
[Round "7"]
[White "ClassyEl"]
[Black "Richarzard69"]
[Result "1-0"]
[WhiteElo "2526"]
[BlackElo "2286"]
[TimeControl "180+1"]
[EndTime "11:16:58 PDT"]
[Termination "ClassyEl won by checkmate"]

1. d4 {[%clk 0:03:00.9]} 1... Nf6 {[%clk 0:01:58.9]} 2. Bg5 {[%clk 0:03:00.2]}
2... c5 {[%clk 0:01:58.7]} 3. Bxf6 {[%clk 0:03:00.1]} 3... gxf6 {[%clk 0:01:58]}
4. d5 {[%clk 0:03:00.6]} 4... d6 {[%clk 0:01:58.6]} 5. e3 {[%clk 0:03:00.6]}
5... Na6 {[%clk 0:01:55.9]} 6. Ne2 {[%clk 0:02:58.4]} 6... b5 {[%clk 0:01:55.4]}
7. Ng3 {[%clk 0:02:55.6]} 7... Nc7 {[%clk 0:01:54.3]} 8. a4 {[%clk 0:01:59.1]}
8... Bd7 {[%clk 0:01:48.7]} 9. axb5 {[%clk 0:00:43.6]} 9... Nxb5 {[%clk
0:01:49.6]} 10. c3 {[%clk 0:00:41.1]} 10... Qb6 {[%clk 0:01:41]} 11. Qc2 {[%clk
0:00:39.9]} 11... Rb8 {[%clk 0:01:34.3]} 12. Nd2 {[%clk 0:00:40]} 12... Nc7
{[%clk 0:01:25.8]} 13. Nc4 {[%clk 0:00:40]} 13... Qb7 {[%clk 0:01:18.8]} 14. e4
{[%clk 0:00:40.1]} 14... f5 {[%clk 0:01:10.7]} 15. Bd3 {[%clk 0:00:29.4]} 15...
fxe4 {[%clk 0:01:03.4]} 16. Bxe4 {[%clk 0:00:29.8]} 16... Bh6 {[%clk 0:00:41.1]}
17. O-O {[%clk 0:00:29.3]} 17... Bf4 {[%clk 0:00:33.9]} 18. Rfe1 {[%clk
0:00:27.6]} 18... h5 {[%clk 0:00:21.6]} 19. Bf3 {[%clk 0:00:20.5]} 19... h4
{[%clk 0:00:15.3]} 20. Nf5 {[%clk 0:00:18.5]} 20... Be5 {[%clk 0:00:04.3]} 21.
Nxe5 {[%clk 0:00:17.2]} 21... dxe5 {[%clk 0:00:05.2]} 22. Rxe5 {[%clk
0:00:17.4]} 22... Kd8 {[%clk 0:00:02.8]} 23. Rae1 {[%clk 0:00:14.2]} 23... Re8
{[%clk 0:00:02.4]} 24. Nxe7 {[%clk 0:00:14]} 24... Qb6 {[%clk 0:00:02.2]} 25.
Nc6+ {[%clk 0:00:14.1]} 25... Bxc6 {[%clk 0:00:01.9]} 26. dxc6 {[%clk
0:00:14.7]} 26... Rxe5 {[%clk 0:00:01.8]} 27. Rxe5 {[%clk 0:00:15.3]} 27... Ne6
{[%clk 0:00:02.7]} 28. Qd2+ {[%clk 0:00:15.3]} 28... Ke7 {[%clk 0:00:02.1]} 29.
Qd7+ {[%clk 0:00:14.9]} 29... Kf6 {[%clk 0:00:02.1]} 30. Re1 {[%clk 0:00:14.3]}
30... Qxb2 {[%clk 0:00:01.6]} 31. h3 {[%clk 0:00:14.2]} 31... Qxc3 {[%clk
0:00:02]} 32. Rd1 {[%clk 0:00:13.5]} 32... Qb2 {[%clk 0:00:02.4]} 33. c7 {[%clk
0:00:13.7]} 33... Rc8 {[%clk 0:00:01.3]} 34. Qxc8 {[%clk 0:00:13.9]} 34... Qc2
{[%clk 0:00:01.4]} 35. Qd8+ {[%clk 0:00:14.4]} 35... Kf5 {[%clk 0:00:01.6]} 36.
c8=Q {[%clk 0:00:14.8]} 36... Qc3 {[%clk 0:00:02.2]} 37. Qd5+ {[%clk 0:00:14.4]}
37... Qe5 {[%clk 0:00:03.1]} 38. Qxe5+ {[%clk 0:00:14.5]} 38... Kxe5 {[%clk
0:00:04]} 39. Qb7 {[%clk 0:00:14.6]} 39... f5 {[%clk 0:00:04.2]} 40. Qxa7 {[%clk
0:00:14.8]} 40... Kf4 {[%clk 0:00:04.3]} 41. Qb8+ {[%clk 0:00:14.5]} 41... Kg5
{[%clk 0:00:03.7]} 42. Re1 {[%clk 0:00:15]} 42... Nd4 {[%clk 0:00:02.6]} 43. Qd6
{[%clk 0:00:15]} 43... c4 {[%clk 0:00:02.4]} 44. Qxd4 {[%clk 0:00:14.8]} 44...
f4 {[%clk 0:00:03.3]} 45. Re5+ {[%clk 0:00:14.3]} 45... Kh6 {[%clk 0:00:04.2]}
46. Qd6+ {[%clk 0:00:14.5]} 46... Kh7 {[%clk 0:00:04.8]} 47. Re7+ {[%clk
0:00:15.4]} 47... Kh8 {[%clk 0:00:05.7]} 48. Qd8# {[%clk 0:00:15.6]} 1-0

[Event "*** Titled Tuesday Blitz"]
[Site "Chess.com"]
[Date "2020.05.12"]
[Round "7"]
[White "spela91"]
[Black "AsselLesbekova"]
[Result "0-1"]
[WhiteElo "2086"]
[BlackElo "2262"]
[TimeControl "180+1"]
[EndTime "11:16:58 PDT"]
[Termination "AsselLesbekova won on time"]

1. e4 {[%clk 0:03:00.9]} 1... c5 {[%clk 0:02:34.2]} 2. Nf3 {[%clk 0:02:58.2]}
2... Nc6 {[%clk 0:02:34.6]} 3. Bb5 {[%clk 0:02:57.4]} 3... e6 {[%clk 0:02:34.5]}
4. c3 {[%clk 0:02:53.4]} 4... Nge7 {[%clk 0:02:32.7]} 5. O-O {[%clk 0:02:49.4]}
5... a6 {[%clk 0:02:32.3]} 6. Ba4 {[%clk 0:02:49.4]} 6... b5 {[%clk 0:02:31.3]}
7. Bc2 {[%clk 0:02:49.9]} 7... d6 {[%clk 0:02:31.5]} 8. d4 {[%clk 0:02:49.8]}
8... cxd4 {[%clk 0:02:32.4]} 9. cxd4 {[%clk 0:02:49.8]} 9... Ng6 {[%clk
0:02:33]} 10. Qe2 {[%clk 0:02:42]} 10... Be7 {[%clk 0:02:32.2]} 11. a3 {[%clk
0:02:36.2]} 11... O-O {[%clk 0:02:30.9]} 12. Nc3 {[%clk 0:02:36]} 12... Qb6
{[%clk 0:02:27.3]} 13. Be3 {[%clk 0:02:32.8]} 13... Qd8 {[%clk 0:02:22]} 14.
Rfd1 {[%clk 0:02:30.4]} 14... Bb7 {[%clk 0:02:21.6]} 15. Rac1 {[%clk 0:02:19.8]}
15... Rc8 {[%clk 0:02:17.7]} 16. e5 {[%clk 0:01:57.5]} 16... d5 {[%clk
0:02:12.8]} 17. h3 {[%clk 0:01:36.5]} 17... Na5 {[%clk 0:02:11.1]} 18. Bb1
{[%clk 0:01:20.7]} 18... Nb3 {[%clk 0:02:06.4]} 19. Rc2 {[%clk 0:01:19.2]} 19...
f6 {[%clk 0:02:00.7]} 20. Ba2 {[%clk 0:01:16.2]} 20... Na5 {[%clk 0:01:59.9]}
21. Rdc1 {[%clk 0:01:14.8]} 21... fxe5 {[%clk 0:01:55.7]} 22. dxe5 {[%clk
0:01:13.2]} 22... Nc4 {[%clk 0:01:51.3]} 23. Bd4 {[%clk 0:01:11]} 23... Nf4
{[%clk 0:01:47.5]} 24. Qd1 {[%clk 0:01:04.4]} 24... Bc5 {[%clk 0:01:39.3]} 25.
Kh2 {[%clk 0:00:57.1]} 25... Qe7 {[%clk 0:01:30.2]} 26. g3 {[%clk 0:00:51.5]}
26... Ng6 {[%clk 0:01:28.5]} 27. Kg2 {[%clk 0:00:50]} 27... Bxd4 {[%clk
0:01:22.2]} 28. Qxd4 {[%clk 0:00:49.7]} 28... Rf7 {[%clk 0:01:20.6]} 29. Nd1
{[%clk 0:00:44.8]} 29... Rcf8 {[%clk 0:01:16.8]} 30. Nh2 {[%clk 0:00:37.9]}
30... Qg5 {[%clk 0:01:07.6]} 31. Bxc4 {[%clk 0:00:31.1]} 31... Nf4+ {[%clk
0:00:57.9]} 32. Kf1 {[%clk 0:00:19.2]} 32... dxc4 {[%clk 0:00:50.1]} 33. gxf4
{[%clk 0:00:17.6]} 33... Qg2+ {[%clk 0:00:48.2]} 34. Ke1 {[%clk 0:00:17.6]}
34... Qxh2 {[%clk 0:00:41.8]} 35. Qd6 {[%clk 0:00:14.8]} 35... Bd5 {[%clk
0:00:30.4]} 36. Ne3 {[%clk 0:00:13.3]} 36... Qh1+ {[%clk 0:00:24]} 37. Kd2
{[%clk 0:00:12.1]} 37... Qe4 {[%clk 0:00:22.1]} 38. Nxd5 {[%clk 0:00:11.6]}
38... exd5 {[%clk 0:00:21.4]} 39. Kc3 {[%clk 0:00:07.5]} 39... Rxf4 {[%clk
0:00:20.4]} 40. Rd2 {[%clk 0:00:05.8]} 40... Rf3+ {[%clk 0:00:19.2]} 41. Kb4
{[%clk 0:00:06.3]} 41... c3+ {[%clk 0:00:19.2]} 0-1

[Event "*** Titled Tuesday Blitz"]
[Site "Chess.com"]
[Date "2020.05.12"]
[Round "7"]
[White "m_ezat"]
[Black "oneshot007"]
[Result "0-1"]
[WhiteElo "2592"]
[BlackElo "2413"]
[TimeControl "180+1"]
[EndTime "11:16:59 PDT"]
[Termination "oneshot007 won by resignation"]

1. d4 {[%clk 0:03:00.9]} 1... g6 {[%clk 0:02:56.7]} 2. c4 {[%clk 0:03:01]} 2...
Nf6 {[%clk 0:02:53.3]} 3. Nc3 {[%clk 0:02:59.7]} 3... Bg7 {[%clk 0:02:52.3]} 4.
e4 {[%clk 0:02:59.7]} 4... O-O {[%clk 0:02:52.2]} 5. Be2 {[%clk 0:02:59.6]} 5...
d6 {[%clk 0:02:50.9]} 6. Bg5 {[%clk 0:02:59.9]} 6... h6 {[%clk 0:02:47.2]} 7.
Be3 {[%clk 0:02:59]} 7... Na6 {[%clk 0:02:41.3]} 8. Qd2 {[%clk 0:02:57.9]} 8...
Kh7 {[%clk 0:02:38]} 9. h4 {[%clk 0:02:54.9]} 9... c5 {[%clk 0:02:26.7]} 10. d5
{[%clk 0:02:48.9]} 10... Ng4 {[%clk 0:02:13.3]} 11. Bxg4 {[%clk 0:02:47.6]}
11... Bxg4 {[%clk 0:02:14.2]} 12. h5 {[%clk 0:02:42.1]} 12... g5 {[%clk
0:02:06.5]} 13. f4 {[%clk 0:02:41.1]} 13... gxf4 {[%clk 0:01:53.7]} 14. Bxf4
{[%clk 0:02:40.7]} 14... f5 {[%clk 0:01:47.1]} 15. Nge2 {[%clk 0:02:33.4]} 15...
fxe4 {[%clk 0:01:37.2]} 16. Ng3 {[%clk 0:02:29.6]} 16... Nb4 {[%clk 0:01:20.5]}
17. Ncxe4 {[%clk 0:02:11.5]} 17... Rxf4 {[%clk 0:01:10.9]} 18. a3 {[%clk
0:02:06.5]} 18... Qa5 {[%clk 0:00:53.8]} 19. Nc3 {[%clk 0:01:47.6]} 19... Raf8
{[%clk 0:00:51.8]} 20. Rf1 {[%clk 0:01:27.3]} 20... Rxf1+ {[%clk 0:00:45]} 21.
Nxf1 {[%clk 0:01:26.7]} 21... Bf5 {[%clk 0:00:39.8]} 22. Ne3 {[%clk 0:01:18.9]}
22... Nd3+ {[%clk 0:00:40]} 23. Ke2 {[%clk 0:01:19.1]} 23... Nxb2 {[%clk
0:00:25.9]} 24. Qxb2 {[%clk 0:00:57.2]} 24... Bxc3 {[%clk 0:00:25.3]} 25. Qxb7
{[%clk 0:00:56.6]} 25... Bxa1 {[%clk 0:00:20.5]} 26. Qxe7+ {[%clk 0:00:56.4]}
26... Bg7 {[%clk 0:00:19.6]} 27. Nxf5 {[%clk 0:00:52.9]} 27... Qc3 {[%clk
0:00:14.7]} 28. Qe4 {[%clk 0:00:50.4]} 28... Qe5 {[%clk 0:00:12.3]} 29. Qxe5
{[%clk 0:00:47.5]} 29... Bxe5 {[%clk 0:00:13.2]} 30. g4 {[%clk 0:00:46.9]} 30...
Rb8 {[%clk 0:00:12.4]} 31. Kf3 {[%clk 0:00:46.2]} 31... Rb3+ {[%clk 0:00:12.5]}
32. Ke4 {[%clk 0:00:46.4]} 32... Rxa3 {[%clk 0:00:13]} 33. Ne7 {[%clk
0:00:39.3]} 33... Rg3 {[%clk 0:00:10.2]} 34. Kf5 {[%clk 0:00:39.5]} 34... Rf3+
{[%clk 0:00:10]} 35. Ke6 {[%clk 0:00:39.2]} 35... Rf6+ {[%clk 0:00:10]} 36. Kd7
{[%clk 0:00:38.9]} 36... a5 {[%clk 0:00:10.4]} 37. Nc6 {[%clk 0:00:19.8]} 37...
Bc3 {[%clk 0:00:10.4]} 38. Ke7 {[%clk 0:00:16.5]} 38... a4 {[%clk 0:00:10.9]}
39. Na5 {[%clk 0:00:11.7]} 39... a3 {[%clk 0:00:10.8]} 40. Nb3 {[%clk
0:00:11.8]} 40... a2 {[%clk 0:00:11.2]} 41. g5 {[%clk 0:00:10.3]} 41... hxg5
{[%clk 0:00:11.1]} 42. h6 {[%clk 0:00:11]} 42... a1=Q {[%clk 0:00:10.7]} 43.
Nxa1 {[%clk 0:00:10.9]} 43... Bxa1 {[%clk 0:00:11.6]} 44. Kd7 {[%clk 0:00:11.1]}
44... Be5 {[%clk 0:00:12.2]} 45. Ke7 {[%clk 0:00:11]} 45... g4 {[%clk
0:00:12.8]} 0-1